lending/lending_fUSD_20250102
["ID","MTS","AMOUNT","RATE_DAILY","PERIOD"]
[347427818,1735793975942,1500.0,7.264e-05,2]
[347427821,1735794275950,150.0,9.5e-05,2]
[347427822,1735794286144,73285.6711103,0.0002,120]
[347427825,1735794591317,-250.0,9.724e-05,2]
[347427826,1735794591343,-183.52,9.8e-05,2]
[347427827,1735794591372,-150.0,9.836e-05,2]
[347427828,1735794591401,-150.0,9.85e-05,2]
[347427829,1735794616532,-150.0,9.96e-05,2]
[347427830,1735794628363,250.0,9.865e-05,2]
[347427843,1735794631564,-510.97823579,0.00010023,2]
[347427845,1735794631576,-489.02176421,0.00010023,2]
[347427846,1735794631585,-150.0,0.00010117,2]
[347427848,1735794631595,-150.0,0.00010145,2]
[347427850,1735794631604,-150.0,0.00010154,2]
[347427851,1735794631613,-150.0,0.0001019,2]
[347427853,1735794631623,-150.0,0.00010331,2]
[347427854,1735794631632,-150.0,0.00010433,2]
[347427856,1735794631641,-150.0,0.00010441,2]
[347427858,1735794631650,-340.9934678,0.0001045,2]
[347427862,1735794631691,-149.3475322,0.0001045,2]
[347427864,1735794631701,-680.72,0.0001048,2]
[347427865,1735794631710,-150.0,0.00010562,2]
[347427867,1735794631719,-150.0,0.00010562,2]
[347427869,1735794631728,-150.0,0.00010586,2]
[347427871,1735794631737,-150.0,0.00010601,2]
[347427872,1735794631746,-150.0,0.00010613,2]
[347427874,1735794631755,-1070.6262131,0.00010817,2]
[347427876,1735794631765,-150.0,0.00010817,2]
[347427877,1735794631775,-300.0,0.00010848,2]
[347427878,1735794631783,-608.61313599,0.00010884,2]
[347427879,1735794631829,-327.6266221,0.00010884,2]
[347427880,1735794631858,-17.51024191,0.00010884,2]
[347427881,1735794631866,-150.0,0.00010884,2]
[347427882,1735794631877,-211.47321275,0.00010884,2]
[347427883,1735794631888,-652.98278725,0.00010884,2]
[347427884,1735794631897,-1954.40093138,0.000109,2]
[347427885,1735794631924,-63494.64849961,0.000109,2]
[347427886,1735794631935,-15123.75815259,0.000109,2]
[347427887,1735794631945,-150.0,0.0001093,2]
[347427888,1735794631954,-150.0,0.00010947,2]
[347427889,1735794631963,-152.83,0.0001095,2]
[347427890,1735794631972,-4706.34023734,0.00010967,2]
[347427891,1735794631982,-69528.73672277,0.0001097,2]
[347427892,1735794631991,-69528.73672277,0.0001097,2]
[347427893,1735794632002,-22722.1980491,0.0001097,2]
[347427894,1735794632011,-50490.67582141,0.0001097,2]
[347427895,1735794632023,-187156.52659027,0.0001097,2]
[347427896,1735794632034,-567.14937216,0.0001097,2]
[347427897,1735794632103,-601.7404142,0.0001097,2]
[347427898,1735794632114,-29707.24994202,0.0001097,2]
[347427902,1735794632192,-2801.00779934,0.0001097,2]
[347427904,1735794637608,-914.94104856,0.0001097,2]
[347427905,1735794637620,-152763.88847396,0.0001097,2]
[347427906,1735794637632,-27496.82053808,0.0001097,2]
[347427907,1735794637641,-556.26625805,0.0001097,2]
[347427908,1735794637650,-25443.61148333,0.00010972,2]
[347427909,1735794637659,-69528.73672277,0.00010972,2]
[347427910,1735794637668,-212.47043623,0.00010972,2]
[347427911,1735794637677,-4706.34023734,0.00010974,2]
[347427912,1735794637686,-556.26625805,0.00010975,2]
[347427913,1735794637697,-212.47043623,0.00010976,2]
[347427914,1735794637706,-69528.73672277,0.00010977,2]
[347427915,1735794637715,-18245.74576596,0.00010979,2]
[347427916,1735794637724,-556.26625805,0.0001098,2]
[347427917,1735794637733,-99793.55920209,0.0001098,2]
[347427918,1735794637782,-9581.60000001,0.0001098,2]
[347427919,1735794637793,-1978.93527603,0.0001098,2]
[347428022,1735794640165,-817.44,0.00010142,2]
[347428023,1735794640175,-3650.19272913,0.0001098,2]
[347428024,1735794640186,-5878.81633257,0.0001098,2]
[347428025,1735794640217,-442.61210009,0.0001098,2]
[347428026,1735794640285,-808.37339128,0.0001098,2]
[347428027,1735794640301,-2610.97439795,0.0001098,2]
[347428028,1735794640312,-466.5999998,0.0001098,2]
[347428029,1735794640323,-4284.08219739,0.0001098,2]
[347428030,1735794640348,-5091.82413923,0.0001098,2]
[347428047,1735794642715,-435.64141315,0.0001098,2]
[347428048,1735794642727,-978.79830355,0.0001098,2]
[347428049,1735794642782,-939.00831506,0.0001098,2]
[347428050,1735794642794,-5330.88,0.0001098,2]
[347428051,1735794642829,-8847.32969744,0.0001098,2]
[347428052,1735794642841,-5363.82640682,0.0001098,2]
[347428053,1735794642902,-500.0,0.00010937,2]
[347428054,1735794642912,-383.5024607,0.0001098,2]
[347428055,1735794642923,-604.799997,0.0001098,2]
[347428056,1735794642961,-6806.8384954,0.0001098,2]
[347428057,1735794642972,-9849.16828037,0.0001098,2]
[347428323,1735794645629,-39487.17226742,0.0001098,2]
[347428337,1735794645749,-626.8265502,0.0001098,2]
[347428339,1735794645761,-1333.31879982,0.0001098,2]
[347428341,1735794645771,-4269.45696372,0.0001098,2]
[347428344,1735794645782,-6844.0,0.0001098,2]
[347428346,1735794645795,-332.6633852,0.0001098,2]
[347428353,1735794645851,-383.5086327,0.0001098,2]
[347428366,1735794645997,-135694.69026588,0.0001098,2]
[347428367,1735794646006,-18245.74576596,0.00010982,2]
[347428368,1735794646016,-18245.74576596,0.00010982,2]
[347428369,1735794646025,-22722.1980491,0.00010983,2]
[347428370,1735794646034,-6468.77045569,0.00010983,2]
[347428372,1735794646053,-704.9042855,0.00010983,2]
[347428374,1735794646063,-700.3751675,0.00010983,2]
[347428385,1735794646154,-14848.14814041,0.00010983,2]
[347428387,1735794646163,-25443.61148333,0.00010984,2]
[347428389,1735794646172,-200.0,0.00010984,2]
[347428391,1735794646181,-2915.59756269,0.00010985,2]
[347428393,1735794646192,-22528.01392064,0.00010985,2]
[347428395,1735794646205,-1637.25620507,0.00010986,2]
[347428397,1735794646216,-281.15244794,0.00010986,2]
[347430939,1735794934761,667.46,8.219e-05,2]
[347430944,1735795221053,2199.02,9.99e-05,2]
[347430955,1735795540458,13177.83993891,0.0001103,7]
[347431026,1735795831852,-300.0,9.988e-05,2]
[347431027,1735795831862,-191.99830939,9.989e-05,2]
[347431028,1735795831871,-500.0,9.989e-05,2]
[347431029,1735795831880,-500.0,9.989e-05,2]
[347431030,1735795831889,-500.0,9.989e-05,2]
[347431031,1735795831898,-500.0,9.989e-05,2]
[347431032,1735795831907,-155.9201754,9.989e-05,2]
[347431033,1735795831917,-80798.42431925,9.99e-05,2]
[347431034,1735795831992,-812.29,9.99e-05,2]
[347431035,1735795832052,-8602.2,9.99e-05,2]
[347431036,1735795832064,-1918.74,9.99e-05,2]
[347431037,1735795832075,-1340.93497038,9.99e-05,2]
[347431038,1735795832087,-1565.51600315,9.99e-05,2]
[347431039,1735795837723,-9593.69999999,9.99e-05,2]
[347431042,1735795837784,-198636.04900338,9.99e-05,2]
[347431044,1735795837796,-1873.80122757,9.99e-05,2]
[347431207,1735795839980,-418.54789703,9.99e-05,2]
[347431208,1735795840159,-6594.82303768,9.99e-05,2]
[347431209,1735795840174,-1263.4438416,9.99e-05,2]
[347431210,1735795840186,-326.85263718,9.99e-05,2]
[347431220,1735795842870,-3851.88067639,9.99e-05,2]
[347431221,1735795842882,-2599.444995,9.99e-05,2]
[347431222,1735795842989,-4049.1615056,9.99e-05,2]
[347431223,1735795843050,-78187.39059225,9.99e-05,2]
[347431224,1735795843061,-501.05350463,9.99e-05,2]
[347431225,1735795843108,-300.0,9.99e-05,2]
[347431226,1735795843170,-1068.64597801,9.99e-05,2]
[347431227,1735795843181,-4970.92635577,9.99e-05,2]
[347431262,1735795846180,-500.0,9.99e-05,2]
[347431263,1735795846209,-2398.66254,9.99e-05,2]
[347431264,1735795846221,-3415.0,9.99e-05,2]
[347431266,1735795846232,-6255.479037,9.99e-05,2]
[347431268,1735795846243,-4788.49953671,9.99e-05,2]
[347431269,1735795846260,-9655.39374182,9.99e-05,2]
[347431270,1735795846287,-351256.18530613,9.99e-05,2]
[347431271,1735795877543,1168.3413,9.89e-05,2]
[347431276,1735795944826,663.48,8.219e-05,2]
[347431278,1735796126984,1000.0,9.809e-05,2]
[347431279,1735796199678,260.67,9.745e-05,2]
[347431280,1735796429722,250.0,9.818e-05,2]
[347431281,1735796493590,757.1,9.824e-05,2]
[347431282,1735796573312,191.929,9.89e-05,2]
[347431283,1735796779584,208.4797,9.756e-05,2]
[347431284,1735796850088,500.0,9e-05,3]
[347431285,1735796852179,1000.0,9.1e-05,3]
[347431286,1735796854293,1600.0,9.2e-05,3]
[347431287,1735796856778,2100.0,9.3e-05,3]
[347431288,1735796858642,2600.0,9.4e-05,3]
[347431289,1735796860733,500.0,9.5e-05,3]
[347431290,1735796862832,500.0,9.6e-05,3]
[347431291,1735797008610,210.0,9.6e-05,3]
[347431293,1735797029955,225.0,9.6e-05,3]
[347431295,1735797032065,-500.0,9.7e-05,3]
[347431296,1735797032075,-41.5203,9.756e-05,2]
[347431297,1735797032084,-377.20115944,9.79e-05,2]
[347431298,1735797032095,-474.0,9.79e-05,2]
[347431299,1735797032107,-1720.19383463,9.79e-05,2]
[347431300,1735797032122,-34935.32648375,9.79e-05,2]
[347431301,1735797032134,-43858.10075181,9.79e-05,2]
[347431302,1735797032221,-469.1440006,9.79e-05,2]
[347431304,1735797032297,-430.24377552,9.79e-05,2]
[347431320,1735797037956,-33008.2214123,9.79e-05,2]
[347431321,1735797037971,-15613.17875957,9.79e-05,2]
[347431322,1735797038079,-5020.60934,9.79e-05,2]
[347431323,1735797038163,-472083.17784503,9.79e-05,2]
[347431324,1735797038173,-500.0,9.8e-05,3]
[347431325,1735797038182,-5000.0,9.89e-05,2]
[347431327,1735797038191,-1000.0,9.89e-05,2]
[347431329,1735797038200,-2096.0,9.89e-05,2]
[347431331,1735797038210,-958.0,9.9e-05,3]
[347431333,1735797038219,-500.52087732,9.963e-05,2]
[347431335,1735797038228,-500.0,9.963e-05,2]
[347431337,1735797038237,-302.59060848,9.963e-05,2]
[347431338,1735797038247,-500.58298261,9.963e-05,2]
[347431341,1735797038258,-500.0,9.963e-05,2]
[347431343,1735797038267,-5433.0,9.973e-05,2]
[347431345,1735797038276,-48798.25269587,9.98e-05,2]
[347431347,1735797038286,-500.0,9.989e-05,2]
[347431349,1735797038295,-33995251.83808159,9.99e-05,2]
[347431374,1735797039969,-23958.5917,9.99e-05,2]
[347431375,1735797039980,-287.66,9.99e-05,2]
[347431376,1735797039991,-313.94567625,9.99e-05,2]
[347431377,1735797040002,-4797.37670001,9.99e-05,2]
[347431378,1735797040017,-1507.22631997,9.99e-05,2]
[347431379,1735797040028,-683.6199995,9.99e-05,2]
[347431380,1735797040039,-255.912,9.99e-05,2]
[347431381,1735797040050,-1745.2,9.99e-05,2]
[347431382,1735797040061,-268.13583273,9.99e-05,2]
[347431383,1735797040121,-1181.43300001,9.99e-05,2]
[347431384,1735797040137,-2631.01595791,9.99e-05,2]
[347431401,1735797042960,-6815.47,9.99e-05,2]
[347431402,1735797043067,-502.02137843,9.99e-05,2]
[347431403,1735797043126,-598.902886,9.99e-05,2]
[347431404,1735797043185,-500.0,9.99e-05,2]
[347431412,1735797046022,-405.155,9.99e-05,2]
[347431413,1735797046243,-375536.42853858,9.99e-05,2]
[347431414,1735797046256,-2351.63147196,9.99e-05,2]
[347431415,1735797046267,-8656.18719702,9.99e-05,2]
[347431419,1735797149886,680.26,8.219e-05,2]
[347431420,1735797430917,11860.05594501,0.0001103,7]
[347431442,1735797694175,345.0,0.0002,120]
[347431445,1735797907589,150.0,8.975e-05,2]
[347431446,1735797908955,2005.0,9.6e-05,2]
[347431449,1735797991504,675.85,9.226e-05,2]
[347431457,1735798232209,-250.0,9.625e-05,2]
[347431458,1735798232218,-1000.0,9.649e-05,2]
[347431459,1735798232228,-300.0,9.689e-05,2]
[347431460,1735798232237,-131.99729,9.69e-05,2]
[347431461,1735798232355,-6056.32800533,9.69e-05,2]
[347431462,1735798232366,-6099.62023516,9.69e-05,2]
[347431465,1735798232522,-875.22278083,9.69e-05,2]
[347431569,1735798238019,-544.38170658,9.69e-05,2]
[347431570,1735798238094,-1065.34829289,9.69e-05,2]
[347431571,1735798238173,-4922.78928921,9.69e-05,2]
[347431572,1735798238183,-1000.0,9.69e-05,2]
[347431573,1735798238193,-250.0,9.692e-05,2]
[347431574,1735798238202,-770.13,9.71e-05,2]
[347431575,1735798238213,-297.29793075,9.808e-05,2]
[347431576,1735798238224,-202.70206925,9.808e-05,2]
[347431577,1735798238233,-5000.0,9.89e-05,2]
[347431578,1735798238244,-1000.0,9.89e-05,2]
[347431579,1735798238255,-509.5583,9.89e-05,2]
[347431580,1735798238264,-3458.4038,9.89e-05,2]
[347431581,1735798238274,-1000.0,9.899e-05,2]
[347431582,1735798238283,-1843.7231551,9.9e-05,2]
[347431583,1735798238294,-538.15438559,9.9e-05,2]
[347431585,1735798238342,-32798.71375562,9.9e-05,2]
[347431587,1735798238352,-500.81409605,9.963e-05,2]
[347431589,1735798238361,-516.5026928,9.963e-05,2]
[347431591,1735798238370,-4812.3649798,9.986e-05,2]
[347431592,1735798238379,-235.9549956,9.986e-05,2]
[347431594,1735798238389,-4505.40315324,9.99e-05,2]
[347431601,1735798238438,-1451.244388,9.99e-05,2]
[347431709,1735798240440,-1219.61553686,9.99e-05,2]
[347431710,1735798240464,-4786.3701,9.99e-05,2]
[347431711,1735798240487,-1433.2,9.99e-05,2]
[347431712,1735798240514,-2016.5,9.99e-05,2]
[347431713,1735798240525,-3578.50931283,9.99e-05,2]
[347431714,1735798240535,-12684.80685398,9.99e-05,2]
[347431727,1735798243224,-317.92,9.99e-05,2]
[347431728,1735798243236,-34227.58758405,9.99e-05,2]
[347431729,1735798243247,-47942.07504742,9.99e-05,2]
[347431730,1735798243372,-1300.6790414,9.99e-05,2]
[347431731,1735798243386,-975.93,9.99e-05,2]
[347431732,1735798243451,-900.10574579,9.99e-05,2]
[347431733,1735798243462,-489.25983585,9.99e-05,2]
[347431762,1735798246219,-2784.36381554,9.99e-05,2]
[347431763,1735798246294,-330.49842,9.99e-05,2]
[347431764,1735798246463,-1936.90100417,9.99e-05,2]
[347431765,1735798246474,-1930.69218795,9.99e-05,2]
[347431766,1735798246617,-2386.39893921,9.99e-05,2]
[347431768,1735798277404,672.21,8.219e-05,2]
[347431769,1735798305340,529.043,9.49e-05,2]
[347431770,1735798702081,4043.66337847,8e-05,2]
[347431771,1735798962918,337.92,9.238e-05,2]
[347431772,1735798987460,507.21,9.49e-05,2]
[347431774,1735799105453,157.84113818,8.975e-05,2]
[347431775,1735799114374,150.0,8.975e-05,2]
[347431776,1735799171549,151.010215,0.0002,120]
[347431777,1735799172703,151.010215,0.0002,120]
[347431778,1735799173219,151.010215,0.0002,120]
[347431779,1735799173842,151.010215,0.0002,120]
[347431780,1735799188112,638.59,8.219e-05,2]
[347431781,1735799189036,259.010215,0.0002,120]
[347431790,1735799315523,10674.05035051,0.0001103,7]
[347431808,1735799432294,-618.27929359,9.684e-05,2]
[347431810,1735799432308,-381.72070641,9.684e-05,2]
[347431812,1735799432318,-250.0,9.702e-05,2]
[347431814,1735799432327,-657.27929359,9.744e-05,2]
[347431816,1735799432339,-82.01070641,9.744e-05,2]
[347431818,1735799432349,-204.115,9.79e-05,2]
[347431819,1735799432358,-794.47930609,9.79e-05,2]
[347431820,1735799432370,-1006.36,9.79e-05,2]
[347431821,1735799432401,-126.86869391,9.79e-05,2]
[347431822,1735799432411,-210.0,9.863e-05,2]
[347431823,1735799432421,-5.68424294,9.89e-05,2]
[347431824,1735799432436,-250.95919535,9.89e-05,2]
[347431825,1735799432447,-2363.0,9.89e-05,2]
[347431826,1735799432458,-451.72001,9.89e-05,2]
[347431827,1735799432510,-4864.0337004,9.89e-05,2]
[347432036,1735799440237,-443.89885131,9.89e-05,2]
[347432038,1735799440247,-1168.3413,9.89e-05,2]
[347432040,1735799440260,-500.0,9.963e-05,2]
[347432042,1735799440273,-159.63528327,9.963e-05,2]
[347432044,1735799440283,-1000.0,9.98e-05,2]
[347432046,1735799440292,-1002.0,9.98e-05,2]
[347432048,1735799440302,-150.99,9.986e-05,2]
[347432050,1735799440311,-8289.07,9.986e-05,2]
[347432052,1735799440320,-299.99,9.986e-05,2]
[347432054,1735799440329,-3148.99618666,9.986e-05,2]
[347432056,1735799440341,-588.22250004,9.986e-05,2]
[347432144,1735799443269,-301.056,9.986e-05,2]
[347432150,1735799443358,-274.89443152,9.986e-05,2]
[347432151,1735799443429,-16444.72088178,9.986e-05,2]
[347432152,1735799443438,-21210.6744599,9.986e-05,2]
[347432153,1735799443447,-7262.571406,9.986e-05,2]
[347432154,1735799443456,-651.72,9.989e-05,2]
[347432155,1735799443465,-500.0,9.989e-05,2]
[347432156,1735799443474,-517.23305877,9.989e-05,2]
[347432157,1735799443483,-27033.38471429,9.99e-05,2]
[347432158,1735799443494,-1580.0,9.99e-05,2]
[347432166,1735799446293,-2304.88,9.99e-05,2]
[347432171,1735799446744,-2351.60450517,9.99e-05,2]
[347432172,1735799446756,-3409.99999996,9.99e-05,2]
[347432173,1735799446767,-53511.8951335,9.99e-05,2]
[347432174,1735799446852,-481.4109456,9.99e-05,2]
[347432175,1735799478334,500.298,9.49e-05,2]
[347432178,1735800188340,479.499,9.49e-05,2]
[347432181,1735800222005,299.3,9.105e-05,2]
[347432184,1735800252221,664.45,8.219e-05,2]
[347432185,1735800450095,591.43,9.089e-05,2]
[347432186,1735800450957,222.010215,0.0002,120]
[347432192,1735800575822,250.0,9.097e-05,2]
[347432194,1735800608195,1000.0,9.099e-05,2]
[347432203,1735800631547,-250.0,9.691e-05,2]
[347432204,1735800631557,-232.19575333,9.7e-05,2]
[347432205,1735800631760,-1945.97471819,9.7e-05,2]
[347432220,1735800637472,-321.82952848,9.7e-05,2]
[347432221,1735800637482,-828.93,9.707e-05,2]
[347432222,1735800637491,-300.0,9.799e-05,2]
[347432223,1735800637500,-20004.92981686,9.8e-05,2]
[347432224,1735800637511,-15316.06970762,9.8e-05,2]
[347432225,1735800637537,-23177.67840751,9.8e-05,2]
[347432240,1735800639428,-299.8200351,9.8e-05,2]
[347432241,1735800639439,-34061.37345239,9.8e-05,2]
[347432242,1735800639705,-1705.5582732,9.8e-05,2]
[347432243,1735800639717,-289.15000193,9.8e-05,2]
[347432288,1735800642631,-965.02382423,9.8e-05,2]
[347432304,1735800645599,-19142.79999999,9.8e-05,2]
[347432305,1735800645632,-292.80640999,9.8e-05,2]
[347432306,1735800645744,-4790.80991641,9.8e-05,2]
[347432307,1735800728646,473.795,9.49e-05,2]
[347432308,1735800847300,250.0,9.111e-05,2]
[347432310,1735800882587,22897.85,9.106e-05,2]
[347432311,1735801187891,299.3,9.088e-05,2]
[347432312,1735801357650,789.28,9.119e-05,2]
[347432313,1735801360290,654.83,8.219e-05,2]
[347432314,1735801367707,454.041,9.49e-05,2]
[347432315,1735801452164,250.0,9.114e-05,2]
[347432316,1735801459970,1000.0,9.114e-05,2]
[347432317,1735801737029,2005.52,9.605e-05,2]
[347432331,1735801831823,-2000.0,9.776e-05,2]
[347432363,1735801837678,-5202.0,9.776e-05,2]
[347432364,1735801837689,-323.9263,9.776e-05,2]
[347432365,1735801837700,-1720.19383463,9.79e-05,2]
[347432366,1735801837711,-61593.18218378,9.8e-05,2]
[347432367,1735801837735,-1150.0429755,9.8e-05,2]
[347432368,1735801837748,-30566.94002738,9.8e-05,2]
[347432369,1735801837760,-3880.54090701,9.8e-05,2]
[347432375,1735801840219,-671.11125443,9.8e-05,2]
[347432376,1735801840230,-395.92311807,9.8e-05,2]
[347432377,1735801840316,-355.72425126,9.8e-05,2]
[347432378,1735801840340,-2023.56126617,9.8e-05,2]
[347432379,1735801840351,-6979.6,9.8e-05,2]
[347432380,1735801840362,-500.0,9.8e-05,2]
[347432381,1735801840390,-8486.18655485,9.8e-05,2]
[347432382,1735801840401,-4835.16761632,9.8e-05,2]
[347432383,1735801840411,-500.0,9.863e-05,2]
[347432384,1735801840420,-500.0,9.863e-05,2]
[347432385,1735801840429,-5133.71023366,9.876e-05,2]
[347432386,1735801840440,-4900.55114409,9.876e-05,2]
[347432387,1735801840511,-941.68,9.876e-05,2]
[347432388,1735801840566,-549.73316218,9.876e-05,2]
[347432392,1735801842763,-754.77479016,9.876e-05,2]
[347432393,1735801842775,-6177.18706618,9.876e-05,2]
[347432394,1735801842807,-25229.92355078,9.876e-05,2]
[347432396,1735801842848,-12538.32830649,9.876e-05,2]
[347432397,1735801842859,-5145.49999974,9.876e-05,2]
[347432398,1735801842897,-7945.76931497,9.876e-05,2]
[347432399,1735801842909,-16969.54342202,9.876e-05,2]
[347432400,1735801842935,-369.04840763,9.876e-05,2]
[347432401,1735801842976,-9444.55953,9.876e-05,2]
[347432402,1735801843015,-6053.01259267,9.876e-05,2]
[347432403,1735801843062,-857.51311523,9.876e-05,2]
[347432404,1735801845823,-427.6945,9.876e-05,2]
[347432405,1735801845834,-11694.11041374,9.876e-05,2]
[347432406,1735801845845,-2810.92507554,9.876e-05,2]
[347432407,1735801845930,-23993.28532953,9.876e-05,2]
[347432408,1735801846154,-289.1299225,9.876e-05,2]
[347432409,1735801999410,435.042,9.49e-05,2]
[347432410,1735802031491,1500.0,9.559e-05,2]
[347432411,1735802109903,2000.0,9.558e-05,2]
[347432412,1735802134264,-300.0,9.875e-05,2]
[347432414,1735802168097,333.010216,0.0002,120]
[347432415,1735802221266,300.0,9.875e-05,2]
[347432416,1735802311044,204.115,9.79e-05,2]
[347432417,1735802311078,1730.218,9.79e-05,2]
[347432422,1735802334879,200.0,9.535e-05,2]
[347432423,1735802356159,250.0,9.091e-05,2]
[347432424,1735802381486,522.27,9.548e-05,2]
[347432425,1735802412722,622.08,8.219e-05,2]
[347432426,1735802413852,3946.317,9.87e-05,2]
[347432427,1735802590058,-1104.1087,9.776e-05,2]
[347432428,1735802590082,-300.0,9.869e-05,2]
[347432429,1735802590105,-10744.9505338,9.87e-05,2]
[347432430,1735802590126,-77850.9407662,9.876e-05,2]
[347432431,1735802590416,1000.0,9.544e-05,2]
[347432432,1735802605176,3111.2036833,0.0001299,15]
[347432433,1735802637706,417.122,9.49e-05,2]
[347432434,1735802733969,1000.0,9.605e-05,2]
[347432444,1735802768773,210.0,9.6e-05,2]
[347432445,1735802795713,150.0,8.899e-05,2]
[347432446,1735802797943,210.0,9.6e-05,2]
[347432447,1735802822917,1450.68,9.548e-05,2]
[347432449,1735802855739,150.0,8.52e-05,2]
[347432450,1735802855778,150.0,9.029e-05,2]
[347432451,1735802855827,150.0,8.95e-05,2]
[347432452,1735802855920,150.0,8.523e-05,2]
[347432453,1735802855959,150.0,9.369e-05,2]
[347432454,1735802856431,150.0,9.222e-05,2]
[347432460,1735802873159,500.0,9.02e-05,2]
[347432464,1735802915838,150.0,8.525e-05,2]
[347432465,1735802915887,150.0,8.435e-05,2]
[347432466,1735802915995,150.0,8.4e-05,2]
[347432467,1735802916032,150.0,9.555e-05,2]
[347432476,1735803003016,713.86,9.973e-05,14]
[347432487,1735803031919,-167.19,9.827e-05,2]
[347432488,1735803031930,-120.468,9.829e-05,2]
[347432490,1735803031941,-29.532,9.829e-05,2]
[347432492,1735803031951,-300.0,9.869e-05,2]
[347432493,1735803031960,-3680.70789401,9.87e-05,2]
[347432494,1735803031972,-500.0,9.87e-05,2]
[347432495,1735803032027,-475.22000005,9.87e-05,2]
[347432496,1735803032039,-3991.39953154,9.87e-05,2]
[347432497,1735803032048,-8.60047006,9.87e-05,2]
[347432498,1735803032059,-586.2,9.87e-05,2]
[347432499,1735803032103,-5571.11820963,9.87e-05,2]
[347432500,1735803032118,-1884.97676507,9.87e-05,2]
[347432501,1735803032146,-531.17464,9.87e-05,2]
[347432502,1735803032158,-598.93662339,9.87e-05,2]
[347432503,1735803032182,-9512.90294355,9.87e-05,2]
[347432504,1735803032191,-43589.68403925,9.876e-05,2]
[347432505,1735803032201,-2500.0,9.889e-05,2]
[347432506,1735803032210,-150.0,9.893e-05,2]
[347432507,1735803032220,-150.0,9.938e-05,2]
[347432508,1735803032229,-1500.0,9.951e-05,2]
[347432509,1735803032239,-500.0,9.963e-05,2]
[347432510,1735803032248,-3928.01703956,9.989e-05,2]
[347432511,1735803032308,-982.98,9.989e-05,2]
[347432543,1735803037902,-37538.18522629,9.989e-05,2]
[347432546,1735803037911,-211.046023,9.989e-05,2]
[347432547,1735803037921,-211.046023,9.989e-05,2]
[347432550,1735803037931,-21619.56169545,9.989e-05,2]
[347432551,1735803037940,-500.0,9.989e-05,2]
[347432552,1735803037949,-500.0,9.989e-05,2]
[347432553,1735803037958,-517.23305877,9.989e-05,2]
[347432554,1735803037967,-500.0,9.989e-05,2]
[347432555,1735803037976,-354.32638723,9.989e-05,2]
[347432556,1735803037985,-500.0,9.989e-05,2]
[347432557,1735803037994,-500.0,9.989e-05,2]
[347432558,1735803038003,-500.0,9.989e-05,2]
[347432559,1735803038012,-500.0,9.989e-05,2]
[347432560,1735803038021,-200.0,9.989e-05,2]
[347432561,1735803038030,-500.0,9.989e-05,2]
[347432562,1735803038039,-473.28834744,9.989e-05,2]
[347432563,1735803038048,-500.0,9.989e-05,2]
[347432564,1735803038057,-500.0,9.989e-05,2]
[347432565,1735803038066,-500.0,9.989e-05,2]
[347432566,1735803038075,-500.0,9.989e-05,2]
[347432567,1735803038084,-500.0,9.989e-05,2]
[347432568,1735803038093,-500.0,9.989e-05,2]
[347432569,1735803038102,-500.0,9.989e-05,2]
[347432570,1735803038111,-614.89477757,9.989e-05,2]
[347432571,1735803038120,-572.0,9.99e-05,2]
[347432572,1735803038129,-228151.85221179,9.99e-05,2]
[347432573,1735803038141,-13626.47147605,9.99e-05,2]
[347432574,1735803038152,-40591.51144084,9.99e-05,2]
[347432575,1735803038163,-8296.4823093,9.99e-05,2]
[347432576,1735803038208,-9056.12819074,9.99e-05,2]
[347432577,1735803038219,-39448.51460053,9.99e-05,2]
[347432578,1735803038231,-15393.05997262,9.99e-05,2]
[347432579,1735803038243,-5970.0,9.99e-05,2]
[347432580,1735803038254,-1690.45909299,9.99e-05,2]
[347432581,1735803038265,-21374.17669279,9.99e-05,2]
[347432582,1735803038276,-1682.74138119,9.99e-05,2]
[347432583,1735803038287,-956.81498519,9.99e-05,2]
[347432584,1735803038299,-74523.97096193,9.99e-05,2]
[347432585,1735803038334,-481153.38862278,9.99e-05,2]
[347432586,1735803038346,-4469.77747567,9.99e-05,2]
[347432592,1735803038387,-333.37312191,9.99e-05,2]
[347432595,1735803038398,-1019.75198005,9.99e-05,2]
[347432597,1735803038409,-684.3000014,9.99e-05,2]
[347432599,1735803038421,-9598.75,9.99e-05,2]
[347432600,1735803038433,-24439.19141542,9.99e-05,2]
[347432612,1735803039972,-674.463281,9.99e-05,2]
[347432613,1735803039984,-495.05178117,9.99e-05,2]
[347432614,1735803039995,-523.904,9.99e-05,2]
[347432615,1735803040007,-1841.21470317,9.99e-05,2]
[347432616,1735803040020,-604.27660424,9.99e-05,2]